Cogmind - Beta 12 @@@ ROGUE MODE // 2023.11.29 @ 11:38:29 Player: arkn Result: Destroyed by D-53 Grenadier with Mini Grenade Launcher Performance ------------- Evolutions (0) 0 Regions Visited (4) 800 Robots Destroyed (26) 130 Value Destroyed (578) 578 Prototype IDs (23) 460 Alien Tech Used (0) 0 Bonus (300) 300 TOTAL SCORE: 2268 Bonus ------- Aligned with FarCom 300 Cogmind --------- Core Integrity 0/250 Matter 255/300 Energy 160/160 System Corruption 1% Temperature Cool (49) Movement Walking (330) Ox3 Location -9/Mines Parts ------- > --- POWER (1) -------- Light Nuclear Core > --- PROPULSION (2) --- Potential Leg Potential Leg > --- UTILITY (2) ------ Humpback > --- WEAPON (2) ------- Medium Laser > --- INVENTORY (35) --- Light Treads Heat Sink Experimental Sensor Array Targeting Computer Core Shielding Heavy EM Pulse Gun Peak State ------------ > --- POWER ------------ Light Nuclear Core > --- PROPULSION ------- Potential Leg Potential Leg > --- UTILITY ---------- Large Storage Unit Structural Scanner > --- WEAPON ----------- Medium Laser Mining Laser > --- INVENTORY -------- Light Treads Light Treads Aluminum Leg Aluminum Leg Aluminum Leg Aluminum Leg Aluminum Leg Compact Wheel Compact Wheel Heat Sink Medium Storage Unit Experimental Sensor Array Core Shielding [Rating: 29] Favorites ----------- Power Ion Engine Engine Ion Engine Power Core Light Nuclear Core Propulsion Aluminum Leg Leg Aluminum Leg Utility Structural Scanner Device Structural Scanner Storage Large Storage Unit Weapon Medium Laser Energy Gun Medium Laser Special Weapon Mining Laser Build | -11 -10 -10 -10 -9 ------- Run | Jun Mat Min Exi Min Slots Evolved . | . . . . . Power . | . . . . . Propulsion . | . . . . . Utility . | . . . . . Weapon . | . . . . . Parts Attached 27 | . 20 4 2 1 Power 3 | . 2 1 . . Engine 2 | . 2 . . . Core 1 | . . 1 . . Reactor . | . . . . . Propulsion 11 | . 7 2 2 . Treads . | . . . . . Leg 11 | . 7 2 2 . Wheel . | . . . . . Hover . | . . . . . Flight . | . . . . . Utility 5 | . 4 . . 1 Device 1 | . 1 . . . Storage 4 | . 3 . . 1 Processor . | . . . . . Hackware . | . . . . . Protection . | . . . . . Artifact . | . . . . . Weapon 8 | . 7 1 . . Energy Gun 7 | . 7 . . . Energy Cannon . | . . . . . Ballistic Gun . | . . . . . Ballistic Cannon . | . . . . . Launcher . | . . . . . Special Weapon 1 | . . 1 . . Impact Weapon . | . . . . . Slashing Weapon . | . . . . . Piercing Weapon . | . . . . . Special Melee Weapon . | . . . . . Unidentified Prototypes . | . . . . . Corrupted Parts 1 | . . 1 . . System Corruption 1 | . . 1 . . Parts Lost 5 | . 2 2 . 1 Power 1 | . . 1 . . Propulsion . | . . . . . Utility . | . . . . . Weapon 4 | . 2 1 . 1 Highest Loss Streak 1 | . 1 1 . 1 To Critical Strikes . | . . . . . Average Slot Usage (%) 96 | . 98 93 97 85 Engine 9 | . 13 11 . . Core 4 | . . 2 14 14 Leg 27 | . 27 28 28 28 Device 12 | . 12 14 11 . Storage 14 | . 14 14 14 14 Energy Gun 21 | . 27 19 14 14 Special Weapon 4 | . . 2 14 14 Naked Turns . | . . . . . Heaviest Build 208 | 12 30 30 29 208 Greatest Support 60 | 20 20 20 60 60 Greatest Overweight (x) 8 | . 8 1 1 3 Average Overweight (x) . | . . 1 . 1 Largest Inventory Capacity 35 | . 15 15 15 35 Average Capacity 14 | . 12 15 15 32 Most Carried 15 | . 10 12 15 15 Average Carried 10 | . 9 10 12 6 Final Capacity 35 | 8 15 15 15 35 Final Carried 15 | 6 9 11 15 6 Class Distribution -------------------- 98% | Mutant Dominant Class ---------------- Mutant | -10/Materials Mutant | -10/Mines Mutant | -10/Exiles Hauler-Mutant | -9/Mines Resources | -11 -10 -10 -10 -9 ----------- Run | Jun Mat Min Exi Min Matter Collected 399 | 200 157 42 . . Remotely . | . . . . . Salvage Created 788 | . 555 233 . . Parts 51 | . 34 17 . . Haulers Intercepted 1 | . 1 . . . Recyclers Shooed 1 | . . 1 . . Parts Field Recycled . | . . . . . Retrieved Matter . | . . . . . Parts Self-Destructed . | . . . . . Prevented . | . . . . . Kills | -11 -10 -10 -10 -9 ------- Run | Jun Mat Min Exi Min Combat Hostiles Destroyed 21 | . 13 8 . . Guns 17 | . 12 5 . . Cannons 2 | . . 2 . . AOE 1 | . 1 . . . Classes Destroyed 5 | . 4 1 . . Worker 3 | . 3 . . . Hauler 1 | . 1 . . . Recycler 1 | . . 1 . . Swarmer 9 | . 3 6 . . Grunt 12 | . 10 2 . . Best Kill Streak 5 | . 5 4 . . Combat Bots Only 5 | . 5 3 . . Max Kills in Single Turn 3 | . 3 1 . . Gunslinging . | . . . . . Exploded 1 | . 1 . . . Melee . | . . . . . Uniques/NPCs Destroyed . | . . . . . Combat | -11 -10 -10 -10 -9 -------- Run | Jun Mat Min Exi Min Damage Taken 1057 | . 428 180 34 415 Core 277 | . 102 23 14 138 Absorbed by Shields . | . . . . . Core Remaining (%) 100 | 100 . . . . Volleys Fired 55 | . 32 19 . 4 Largest 2 | . 2 2 . 1 Hottest 150 | . 100 150 . 50 Shots Fired 103 | . 64 35 . 4 Gun 98 | . 64 30 . 4 Cannon . | . . . . . Launcher . | . . . . . Special 5 | . . 5 . . Kinetic . | . . . . . Thermal 65 | . 26 35 . 4 Explosive . | . . . . . Electromagnetic 38 | . 38 . . . Robot Hit Streak 8 | . 8 4 . 1 Robot Miss Streak 5 | . 5 3 . 3 Penetration Max . | . . . . . Secondary Targets 1 | . . 1 . . Max Gunslinging Chain 1 | . . 1 . . Shots Hit Robots 57 | . 37 19 . 1 Core Hits 40 | . 28 12 . . Critical Kills . | . . . . . Critical Parts Destroyed . | . . . . . Critical Strikes 3 | . 2 1 . . Burn 3 | . 2 1 . . Melee Attacks . | . . . . . Impact . | . . . . . Slashing . | . . . . . Piercing . | . . . . . Sneak Attacks . | . . . . . Combat Hostiles . | . . . . . Follow-up Attacks . | . . . . . Damage Inflicted 1205 | . 932 261 . 12 Guns 745 | . 520 213 . 12 Cannons . | . . . . . Explosions 403 | . 403 . . . Melee . | . . . . . Ramming 9 | . 9 . . . Kinetic . | . . . . . Thermal 531 | . 258 261 . 12 Explosive 346 | . 346 . . . Electromagnetic 319 | . 319 . . . Impact . | . . . . . Slashing . | . . . . . Piercing . | . . . . . Highest Corruption 1 | . . 1 1 1 Average Corruption 1 | . . 1 1 1 Corruption Purged . | . . . . . Corruption Blocked . | . . . . . Effects 3 | . . . 3 . Matter Fused 1 | . . . 1 . Heat Flow Errors 1 | . . . 1 . Data Loss (major) 1 | . . . 1 . Overload Shots . | . . . . . Overflow Damage . | . . . . . Projectiles . | . . . . . Explosions . | . . . . . Melee . | . . . . . Knockbacks . | . . . . . Impact . | . . . . . Kinetic . | . . . . . Secondary . | . . . . . Self-Inflicted Damage . | . . . . . Shots . | . . . . . Rammed . | . . . . . Targets Rammed 4 | . 4 . . . Kicked 4 | . 4 . . . Crushed . | . . . . . Highest Temperature 228 | . 228 213 98 49 Average Temperature 69 | . 61 85 56 28 Received Heat Transfer 189 | . 156 33 . . Siege Activations . | . . . . . Robots Corrupted . | . . . . . Combat Hostiles . | . . . . . Parts Fried . | . . . . . Impact Corruptions . | . . . . . Robots Melted 1 | . . 1 . . Combat Hostiles 1 | . . 1 . . Parts Melted 3 | . 2 1 . . Heat Transferred 1630 | . 790 803 . 37 Parts Sabotaged . | . . . . . Parts Stolen . | . . . . . Parts Stripped . | . . . . . Power Chain Reactions 1 | . 1 . . . Missiles Intercepted . | . . . . . Alert | -11 -10 -10 -10 -9 ------- Run | Jun Mat Min Exi Min Peak Influence 282 | . 282 191 . 15 Initial 51 | . . 51 . . Average 110 | . 140 80 . 5 Maximum Alert Level 1 | . 1 . . . Low Security (%) 80 | . 63 100 . 100 Level 1 19 | . 36 . . . Level 2 . | . . . . . Level 3 . | . . . . . Level 4 . | . . . . . Level 5 . | . . . . . High Security . | . . . . . Max Security . | . . . . . Squads Dispatched 2 | . 2 . . . Investigation 1 | . 1 . . . Extermination . | . . . . . Reinforcement 1 | . 1 . . . Assault . | . . . . . Garrison . | . . . . . Intercept . | . . . . . Searches Triggered . | . . . . . Construction Impeded . | . . . . . Haulers Reinforced . | . . . . . Active Scanning Responses . | . . . . . Cargo Convoy Interrupts . | . . . . . Stealth | -11 -10 -10 -10 -9 --------- Run | Jun Mat Min Exi Min Distress Signals 2 | . 2 . . . Communications Jammed . | . . . . . Distress Signals . | . . . . . Times Spotted 45 | . 23 9 6 7 Peak Tracking Total 13 | . 6 3 13 5 Tactical Retreats 1 | . . 1 . . Traps | -11 -10 -10 -10 -9 ------- Run | Jun Mat Min Exi Min Traps Triggered 6 | . 6 . . . Indirectly . | . . . . . Trap Hack Attempts . | . . . . . Triggered . | . . . . . Disarmed . | . . . . . Reprogrammed . | . . . . . Reused . | . . . . . Traps Extracted . | . . . . . Installed . | . . . . . Triggered 1 | . 1 . . . Machines | -11 -10 -10 -10 -9 ---------- Run | Jun Mat Min Exi Min Machines Disabled 3 | . 3 . . . Max in Single Turn 1 | . 1 . . . Machines Repaired . | . . . . . Machines Sabotaged . | . . . . . Overloaded Fab Kills . | . . . . . Hacking | -11 -10 -10 -10 -9 --------- Run | Jun Mat Min Exi Min Machines Accessed 5 | . 4 . 1 . Terminals 4 | . 4 . . . Fabricators . | . . . . . Repair Stations . | . . . . . Recycling Units . | . . . . . Scanalyzers . | . . . . . Garrison Access . | . . . . . Total Hacks 13 | . 12 . 1 . Successful 7 | . 6 . 1 . Failed 6 | . 6 . . . Catastrophic . | . . . . . Database Lockouts . | . . . . . Manual 10 | . 9 . 1 . Terminals 12 | . 12 . . . Fabricators . | . . . . . Repair Stations . | . . . . . Recycling Units . | . . . . . Scanalyzers . | . . . . . Garrison Access . | . . . . . Terminal Hacks 5 | . 4 . 1 . Record 1 | . 1 . . . Terminal Index 1 | . 1 . . . Zone Layout 2 | . 2 . . . EX-Prototype ID Bank 1 | . . . 1 . Fabricator Hacks . | . . . . . Repair Station Hacks . | . . . . . Recycling Unit Hacks . | . . . . . Scanalyzer . | . . . . . Garrison Access Hacks . | . . . . . Unauthorized Hacks 2 | . 2 . . . Terminals 2 | . 2 . . . Botnet 2 | . 2 . . . Fabricators . | . . . . . Repair Stations . | . . . . . Recycling Units . | . . . . . Scanalyzers . | . . . . . Garrison Access . | . . . . . Data Cores Recovered . | . . . . . Used . | . . . . . Hacking Detections 4 | . 4 . . . Full Trace Events . | . . . . . Feedback Events . | . . . . . Feedback Blocked . | . . . . . Robot Schematics Acquired . | . . . . . Robots Built . | . . . . . Authchips . | . . . . . Time . | . . . . . Total Robot Build Rating . | . . . . . Part Schematics Acquired . | . . . . . Parts Built . | . . . . . Authchips . | . . . . . Time . | . . . . . Total Part Build Rating . | . . . . . Parts Repaired . | . . . . . Time . | . . . . . Parts Recycled . | . . . . . Recycled Matter . | . . . . . Retrieved Matter . | . . . . . Retrieved Components . | . . . . . Parts Scanalyzed . | . . . . . Part Schematics Acquired . | . . . . . Parts Damaged . | . . . . . Bothacking | -11 -10 -10 -10 -9 ------------ Run | Jun Mat Min Exi Min Used RIF Installer . | . . . . . Robots Hacked . | . . . . . Non-combat . | . . . . . Combat . | . . . . . Robot Hacks Applied . | . . . . . Relay Couplers Released . | . . . . . Fabnet Peak Effective % . | . . . . . Robots Rewired . | . . . . . Allies Hacked . | . . . . . Hacks Repelled . | . . . . . Allies | -11 -10 -10 -10 -9 -------- Run | Jun Mat Min Exi Min Total Allies . | . . . . . Largest Group . | . . . . . Highest-Rated Group . | . . . . . Highest-Rated Ally . | . . . . . Total Orders . | . . . . . Ally Attacks . | . . . . . Total Damage . | . . . . . Kills . | . . . . . Allies Corrupted . | . . . . . Allies Melted . | . . . . . Intel | -11 -10 -10 -10 -9 ------- Run | Jun Mat Min Exi Min Robot Analysis Total . | . . . . . Derelict Logs Recovered 2 | . . 2 . . Drone Launches . | . . . . . Drone Recoveries . | . . . . . Exploration | -11 -10 -10 -10 -9 ------------- Run | Jun Mat Min Exi Min Turns Passed 2145 | . 904 733 464 44 Spaces Moved 1228 | 1 466 346 394 21 Core 1 | . 1 . . . Treads . | . . . . . Legs 1227 | 1 465 346 394 21 Wheels . | . . . . . Hover . | . . . . . Flight . | . . . . . Fastest Speed 45 | 120 120 190 45 45 Average Speed 145 | 120 161 190 88 152 Slowest Speed 450 | 120 450 190 190 330 Overloaded Moves 291 | . . . 272 19 Propulsion Burnouts . | . . . . . Robots Hopped . | . . . . . Cave-ins Triggered . | . . . . . Exploration Rate (%) 49 | 2 86 84 62 11 Regions Visited 4 Branch Regions 3 Pre-discovered Areas . | . . . . . Known Exits Taken 1 | . . . 1 . Unknown Exits Taken 3 | 1 1 1 . . Scrap Searched 3 | . . 2 . 1 Spaces Dug . | . . . . . Terrain Destroyed 29 | . 27 2 . . Melee . | . . . . . Projectile 2 | . . 2 . . AOE 27 | . 27 . . . Terrain Rammed . | . . . . . Walls Destroyed . | . . . . . Machines Disabled . | . . . . . Actions | -11 -10 -10 -10 -9 --------- Run | Jun Mat Min Exi Min Total 1466 | . 551 376 509 30 Wait 137 | . 20 6 111 . Move 1224 | . 465 345 393 21 Hop . | . . . . . Pick Up 11 | . 5 2 1 3 Fast Attach 11 | . 11 . . . Attach 6 | . 3 2 . 1 Detach 2 | . 1 . 1 . Swap 10 | . 6 2 2 . Drop 6 | . 4 . 1 1 Fire 55 | . 32 19 . 4 Melee . | . . . . . Ram . | . . . . . Kick 4 | . 4 . . . Crush . | . . . . . Escape Stasis . | . . . . . Rewire . | . . . . . Trap . | . . . . . Miscellaneous . | . . . . . Route ------- -11/Junkyard -10/Materials (discovered 5 exits: [*Mat x3] / [*Min x2]) -10/Mines (discovered 3 exits: [*Mat x2] / *Exi) -10/Exiles (discovered 2 exits: *Min x2) -9/Mines History --------- Turn | Location | Event 1 | -11/Junkyard | Discovered new exit (range 0) 1 | -11/Junkyard | Entered Materials 52 | -10/Materials | Discovered new exit (range 10) 287 | -10/Materials | Discovered new exit (range 16) 317 | -10/Materials | Build established: Mutant 365 | -10/Materials | Discovered new exit (range 3) 618 | -10/Materials | Discovered new exit (range 10) 694 | -10/Materials | Discovered new exit (range 15) 905 | -10/Materials | Entered Mines 920 | -10/Mines | Met a Derelict bent on vengeance 951 | -10/Mines | Discovered new exit (range 13) 1099 | -10/Mines | Found a hidden stash of uninstalled traps 1253 | -10/Mines | Found a damaged Exp. Sensor Array with a note attached 1257 | -10/Mines | Found Prototype Device 1402 | -10/Mines | Learned Materials garrison access intel 1461 | -10/Mines | Discovered new exit (range 14) 1628 | -10/Mines | Deemed a non-threat by the Exiles lab entrance 1628 | -10/Mines | Discovered new exit (range 5) 1638 | -10/Mines | Entered Exiles 1639 | -10/Exiles | Identified exit to Mines 1694 | -10/Exiles | Met 8R-AWN 1726 | -10/Exiles | Met EX-HEX 1779 | -10/Exiles | Met EX-BIN 1800 | -10/Exiles | Aligned with FarCom system 1802 | -10/Exiles | Given EX-Vault access code 1846 | -10/Exiles | Opened EX-Vault 1859 | -10/Exiles | Found Potential Leg 1861 | -10/Exiles | Found Potential Leg 1874 | -10/Exiles | Warned to stay clear of 0b10 Research branches 1881 | -10/Exiles | Exiles lab attacked by MAIN.C 2091 | -10/Exiles | Core integrity fell below 50% 2102 | -10/Exiles | Left Exiles lab with Potential Leg 2102 | -10/Exiles | Entered Mines 2103 | -9/Mines | Assembled infested the area 2143 | -9/Mines | Core integrity fell below 20% 2146 | -9/Mines | Destroyed by D-53 Grenadier with Mini Grenade Launcher Last Messages --------------- 02107_ Found Targeting Computer. 02107_ Found Hvy. EM Pulse Gun. 02107_ Found Lgt. Cannon. 02107_ Found 22 Matter. 02108_ Dropped Lrg. Storage Unit. 02112_ Acquired Targeting Computer. 02116_ Acquired Hvy. EM Pulse Gun. 02118_ GM-J5T: "Oh no, it's like what happened to the Exiles when they were wandering homeless, only there's no Warlord to save us!" 02123_ Acquired Prototype Device. 02124_ C-30 ARC bursts open, deploying its payload. 02124_ D-53 Grenadier unfolds itself. 02124_ GM-J5T destroyed. 02127_ as-95730 destroyed. 02129_ as-12166 destroyed. 02131_ The unstable cave ceiling collapses. 02136_ as-78360 destroyed. 02140_ Mining Laser destroyed. 02142_ as-98100 destroyed. 02142_ as-03233 destroyed. Map ----- +----------------------------------------------------+ | ?????????????????????????????????????????????????? | | ?????????????????????????????????????????????????? | | ?????????????????????????????????????????????????? | | ?????????????????????????????????????????????????? | | ?????????????????????????????????????????????????? | | ?????????????????????????????????????????????????? | | ?????????????????????????????????????????????????? | | ?????????????????????????????????????????????????? | | ?????????????????????????????????????????????????? | | ?????????????????????????????????????????????????? | | ?????????????????????????????????????????????????? | | ?????????????????????????????????????????????????? | | ???????????????????????????????? ????????????????? | | ???????????????????????????????? ??????????????? | | ???????????????????????????????# #?????????????? | | ???????????????????##?????????# #?????????????? | | ???????????????????# ??????### #?????????????? | | ???????????????????? ????? #?????????????? | | ????????????????????? ????? ??????????????? | | ????????????????????? ???? ???????????????? | | ?????????????????????? #### #????????????????? | | ??????????????????# ?## ##???????????????? | | ???????????????????# # #???????????????? | | ???????????????????# ##???????????????? | | ???????????????????# =##??????????????? | | ???????????????????# @ ==]#??????????????? | | ?????????????????# ! ! %#??????????????? | | ?????????????????# ## == #??????????????? | | ??????????????????? d = =##??????????????? | | ????????????????## d =#???????????????? | | ????????????? ####????????????? | | ???????????? % ?????? | | ?????????????##### ### ????? | | ?????????????????# ## #????#### ?????? | | ?????????????????####### ### #???????????????? | | ???????????????????????######?# #???????????????? | | ?????????????????????????????? ???????????????? | | ??????????????????????????????g ??????????????? | | ????????????????????????????g? ?????????????? | | ??????????????????????????????"" """ ????????????? | | ??????????????????????????????"" """ ???????????? | | ???????????????????????????????? ???? #??????????? | | ???????????????????????????????? ????????????????? | | ?????????????????????????????????????????????????? | | ?????????????????????????????????????????????????? | | ?????????????????????????????????????????????????? | | ?????????????????????????????????????????????????? | | ?????????????????????????????????????????????????? | | ?????????????????????????????????????????????????? | | | +----------------------------------------------------+ Best States ------------- Heat Dissipation 25 Energy Generation 14 Energy Capacity 250 Matter Stores 300 Matter Capacity 300 Sight Range 16 Terrain Scan Density 10 Evasion (%) 66 Item Schematics ----------------- None Robot Schematics ------------------ None Fabricated ------------ Nothing Alien Tech Used ----------------- None Achievements -------------- None Challenges ------------ None Game ------ Seed DisruptorSignalFlamer Manual? 0 Play Time 00:20:41 Cumulative 55.3 hours Start 2023.11.29 @ 11:19:07 End 2023.11.29 @ 11:38:29 Sessions 1 Manual Loads 0 Difficulty Rogue Special Mode None Game No. 60 Rogue 60 Adventurer 0 Explorer 0 Win Type - Total 0 Types 0/0/0/0/0/0/0/0/0 Lore% 31 Gallery% 34 Achievement% 31 Wizard Run 0 Options --------- ASCII 0 Keyboard 0 Movement Numpad Keybinds 0 Fullscreen 1 Font 18/X11Bold Map View 76x50 Tactical HUD 1 Map Filters NONE Filters NONE Steam 1 RUN: e6fdf592-39d6-4206-b7be-dc31633e466a